bitfinex/quotes_BTCUSD_20250615
["timestamp","ask_amount","ask_price","bid_price","bid_amount"]
[1749975842378,0.40772663,105430.0,105420.0,0.52056712]
[1749975842597,0.007,105430.0,105420.0,0.9411925]
[1749975843974,0.005,105430.0,105420.0,0.9411925]
[1749975844188,0.005,105430.0,105420.0,0.96097335]
[1749975844590,0.005,105430.0,105420.0,0.9431925]
[1749975844854,0.34495708,105440.0,105430.0,0.24925312]
[1749975845062,0.34495708,105440.0,105430.0,0.49961488]
[1749975846138,0.34495708,105440.0,105430.0,0.51732054]
[1749975846548,0.34495708,105440.0,105430.0,0.51732057]
[1749975846766,0.34495708,105440.0,105430.0,0.49961488]
[1749975846992,0.34695708,105440.0,105430.0,0.50061488]
[1749975847868,0.79265234,105440.0,105430.0,0.51832059]
[1749975848548,0.79265234,105440.0,105430.0,0.50061488]
[1749975848766,0.79265234,105440.0,105430.0,0.52031042]
[1749975848992,0.79265234,105440.0,105430.0,0.52031046]
[1749975849219,0.79265234,105440.0,105430.0,0.50261488]
[1749975849441,0.79265234,105440.0,105430.0,0.52031046]
[1749975849918,0.79265234,105440.0,105430.0,0.50261488]
[1749975850354,0.79265234,105440.0,105430.0,0.54229488]
[1749975850575,0.79265234,105440.0,105430.0,0.55999048]
[1749975850808,0.79265234,105440.0,105430.0,0.54229488]
[1749975851399,0.79265234,105440.0,105430.0,0.55999047]
[1749975851640,0.34695708,105440.0,105430.0,0.54229488]
[1749975851849,0.79265234,105440.0,105430.0,0.54229488]
[1749975854040,0.79265234,105440.0,105430.0,0.5655891]
[1749975854664,0.79265234,105440.0,105430.0,0.54229488]
[1749975855574,0.00695708,105440.0,105430.0,1.00253099]
[1749975856055,0.00695708,105440.0,105430.0,1.05253099]
[1749975856291,0.002,105440.0,105430.0,1.05253099]
[1749975858079,0.002,105440.0,105430.0,1.06218785]
[1749975858303,0.002,105440.0,105430.0,1.15833707]
[1749975864770,0.002,105440.0,105430.0,1.18683407]
[1749975866372,0.002,105440.0,105430.0,0.74113881]
[1749975866597,0.002,105440.0,105430.0,1.18683407]
[1749975866807,0.002,105440.0,105430.0,1.17705721]
[1749975867247,0.002,105440.0,105430.0,0.98337721]
[1749975867459,0.002,105440.0,105430.0,1.17705721]
[1749975870674,0.002,105440.0,105430.0,0.98337721]
[1749975870878,0.002,105440.0,105430.0,1.17705721]
[1749975871087,0.002,105440.0,105430.0,1.01636714]
[1749975871298,0.002,105440.0,105430.0,0.98787014]
[1749975871518,0.44769526,105440.0,105430.0,0.31739488]
[1749975871731,0.46289526,105440.0,105430.0,0.31739488]
[1749975871945,0.47789526,105440.0,105430.0,0.79897573]
[1749975872155,0.50216557,105440.0,105430.0,0.79897573]
[1749975872367,0.47789526,105440.0,105430.0,0.79897573]
[1749975872576,0.47789526,105440.0,105430.0,0.78443488]
[1749975872806,0.0322,105440.0,105430.0,0.78443488]
[1749975873230,0.47789526,105440.0,105430.0,0.78443488]
[1749975873435,0.0322,105440.0,105430.0,0.79897573]
[1749975874363,0.04164078,105440.0,105430.0,0.79897573]
[1749975874584,0.04164078,105440.0,105430.0,0.60529573]
[1749975874794,0.04164078,105440.0,105430.0,0.79897573]
[1749975876913,0.04164078,105440.0,105430.0,0.60529573]
[1749975877056,0.04164078,105440.0,105430.0,0.79897573]
[1749975880577,0.04164078,105440.0,105430.0,0.64493573]
[1749975880791,0.04164078,105440.0,105430.0,0.79897573]
[1749975883706,0.002,105440.0,105430.0,0.83007573]
[1749975885924,0.002,105440.0,105430.0,1.22628433]
[1749975886400,0.002,105440.0,105430.0,1.32243355]
[1749975886609,0.002,105440.0,105430.0,0.92622495]
[1749975888864,0.002,105440.0,105430.0,0.83007573]
[1749975894187,0.002,105440.0,105430.0,0.81447573]
[1749975895790,0.002,105440.0,105430.0,0.79897573]
[1749975901183,0.002,105440.0,105430.0,1.2446124]
[1749975903389,0.002,105440.0,105430.0,1.2603124]
[1749975905531,0.002,105440.0,105430.0,0.81467573]
[1749975905742,0.002,105440.0,105430.0,1.2603124]
[1749975906255,0.002,105440.0,105430.0,1.35646162]
[1749975906464,0.002,105440.0,105430.0,1.2603124]
[1749975907115,0.002,105440.0,105430.0,1.2759124]
[1749975910066,0.002,105440.0,105430.0,1.29370599]
[1749975910463,0.002,105440.0,105430.0,1.29370614]
[1749975910660,0.002,105440.0,105430.0,1.2759124]
[1749975910874,0.002,105440.0,105430.0,1.29370599]
[1749975911041,0.002,105440.0,105430.0,0.94421854]
[1749975911262,0.002,105440.0,105430.0,1.38985524]
[1749975911465,0.002,105440.0,105430.0,1.38985525]
[1749975911666,0.002,105440.0,105430.0,1.37206162]
[1749975912417,0.002,105440.0,105430.0,1.38985539]
[1749975912624,0.002,105440.0,105430.0,1.3898554]
[1749975912841,0.002,105440.0,105430.0,1.38985529]
[1749975913048,0.002,105440.0,105430.0,1.38985545]
[1749975913265,0.002,105440.0,105430.0,1.38985544]
[1749975913471,0.002,105440.0,105430.0,1.38985543]
[1749975913901,0.002,105440.0,105430.0,1.38985545]
[1749975914132,0.002,105440.0,105430.0,1.29370603]
[1749975914333,0.002,105440.0,105430.0,1.2759124]
[1749975914535,0.002,105440.0,105430.0,1.29370643]
[1749975914764,0.002,105440.0,105430.0,1.2937064]
[1749975914967,0.002,105440.0,105430.0,1.2759124]
[1749975915169,0.002,105440.0,105430.0,1.29370638]
[1749975915313,0.002,105440.0,105430.0,1.29370622]
[1749975915552,0.002,105440.0,105430.0,1.29370644]
[1749975915756,0.002,105440.0,105430.0,1.2759124]
[1749975915954,0.002,105440.0,105430.0,1.29370645]
[1749975916155,0.002,105440.0,105430.0,1.29370644]
[1749975916597,0.002,105440.0,105430.0,1.2759124]
[1749975916939,0.002,105440.0,105430.0,1.29370644]
[1749975917115,0.002,105440.0,105430.0,1.29371127]
[1749975917348,0.002,105440.0,105430.0,1.29370901]
[1749975917751,0.002,105440.0,105430.0,1.2759124]
[1749975917903,0.002,105440.0,105430.0,1.29370905]
[1749975918107,0.002,105440.0,105430.0,1.29370904]
[1749975918329,0.002,105440.0,105430.0,1.2758324]
[1749975918736,0.002,105440.0,105430.0,1.29362905]
[1749975918931,0.002,105440.0,105430.0,1.2758324]
[1749975919274,0.002,105440.0,105430.0,1.2602324]
[1749975919486,0.002,105440.0,105430.0,1.27802904]
[1749975919693,0.002,105440.0,105430.0,1.27802911]
[1749975919896,0.002,105440.0,105430.0,1.2602324]
[1749975920729,0.002,105440.0,105430.0,1.27802914]
[1749975920934,0.002,105440.0,105430.0,1.2445324]
[1749975921292,0.002,105440.0,105430.0,1.26232912]
[1749975921513,0.002,105440.0,105430.0,1.2445324]
[1749975921708,0.002,105440.0,105430.0,1.26232914]
[1749975921914,0.002,105440.0,105430.0,1.2445324]
[1749975922117,0.002,105440.0,105430.0,1.26232914]
[1749975922344,0.002,105440.0,105430.0,1.2445324]
[1749975922547,0.033,105440.0,105430.0,0.81665247]
[1749975922747,0.033,105440.0,105430.0,0.81665254]
[1749975923109,0.033,105440.0,105430.0,1.26228946]
[1749975923430,0.033,105440.0,105430.0,1.2444924]
[1749975923868,0.033,105440.0,105430.0,0.81665308]
[1749975924078,0.033,105440.0,105430.0,1.26228972]
[1749975924286,0.033,105440.0,105430.0,1.2444924]
[1749975924502,0.033,105440.0,105430.0,1.26228979]
[1749975924715,0.47863667,105440.0,105430.0,0.81665312]
[1749975925123,0.033,105440.0,105430.0,0.81665312]
[1749975925539,0.033,105440.0,105430.0,0.79885573]
[1749975926165,0.033,105440.0,105430.0,0.81665312]
[1749975926369,0.47863667,105440.0,105430.0,0.79885573]
[1749975926621,0.47863667,105440.0,105430.0,0.81665339]
[1749975926804,0.47863667,105440.0,105430.0,0.81665338]
[1749975927055,0.47863667,105440.0,105430.0,0.81665343]
[1749975927267,0.033,105440.0,105430.0,0.79885573]
[1749975927448,0.47863667,105440.0,105430.0,0.81665343]
[1749975927923,0.47863667,105440.0,105430.0,0.8166534]
[1749975928134,0.47863667,105440.0,105430.0,0.81665347]
[1749975928547,0.033,105440.0,105430.0,0.79885573]
[1749975928754,0.033,105440.0,105430.0,0.81665347]
[1749975928964,0.033,105440.0,105430.0,0.81665348]
[1749975929385,0.033,105440.0,105430.0,0.79885573]
[1749975929596,0.033,105440.0,105430.0,0.81665347]
[1749975929798,0.033,105440.0,105430.0,0.81665334]
[1749975930023,0.033,105440.0,105430.0,0.62309334]
[1749975930224,0.033,105440.0,105430.0,0.81665347]
[1749975930739,0.033,105440.0,105430.0,0.79885573]
[1749975930985,0.033,105440.0,105430.0,0.81665339]
[1749975931192,0.033,105440.0,105430.0,0.81665349]
[1749975931538,0.033,105440.0,105430.0,0.81665348]
[1749975931845,0.033,105440.0,105430.0,0.79885573]
[1749975932093,0.033,105440.0,105430.0,0.81665348]
[1749975933043,0.033,105440.0,105430.0,0.8166535]
[1749975933237,0.033,105440.0,105430.0,0.81665349]
[1749975933441,0.033,105440.0,105430.0,0.79885573]
[1749975933649,0.033,105440.0,105430.0,0.81665348]
[1749975933846,0.033,105440.0,105430.0,0.81665343]
[1749975934053,0.47863667,105440.0,105430.0,0.81665343]
[1749975934179,0.47863667,105440.0,105430.0,0.81665344]
[1749975934390,0.033,105440.0,105430.0,0.81665346]
[1749975934619,0.033,105440.0,105430.0,0.81665347]
[1749975934939,0.033,105440.0,105430.0,0.8166535]
[1749975935515,0.033,105440.0,105430.0,0.81665349]
[1749975935748,0.033,105440.0,105430.0,0.81665348]
[1749975936356,0.033,105440.0,105430.0,0.81665573]
[1749975936558,0.033,105440.0,105430.0,0.81663574]
[1749975936762,0.033,105440.0,105430.0,0.81663565]
[1749975936968,0.033,105440.0,105430.0,0.79885573]
[1749975937196,0.033,105440.0,105430.0,0.81663577]
[1749975937397,0.033,105440.0,105430.0,0.81663575]
[1749975937601,0.033,105440.0,105430.0,0.81663574]
[1749975937808,0.033,105440.0,105430.0,0.60529573]
[1749975938042,0.033,105440.0,105430.0,0.81663571]
[1749975938416,0.033,105440.0,105430.0,0.79885573]
[1749975938624,0.033,105440.0,105430.0,0.81663575]
[1749975938798,0.033,105440.0,105430.0,0.81663568]
[1749975939213,0.033,105440.0,105430.0,0.81663575]
[1749975939362,0.033,105440.0,105430.0,0.62307568]
[1749975939561,0.033,105440.0,105430.0,0.79885573]
[1749975939768,0.033,105440.0,105430.0,0.81663557]
[1749975939976,0.033,105440.0,105430.0,0.81663564]
[1749975940322,0.033,105440.0,105430.0,0.81663573]
[1749975940494,0.033,105440.0,105430.0,0.81663572]
[1749975940693,0.033,105440.0,105430.0,0.79885573]
[1749975941515,0.033,105440.0,105430.0,0.81663576]
[1749975941879,0.033,105440.0,105430.0,0.81663566]
[1749975942199,0.033,105440.0,105430.0,0.81663568]
[1749975942408,0.033,105440.0,105430.0,0.81663576]
[1749975942587,0.033,105440.0,105430.0,0.79885573]
[1749975942803,0.033,105440.0,105430.0,0.81663576]
[1749975943172,0.033,105440.0,105430.0,0.79885573]
[1749975943573,0.033,105440.0,105430.0,0.81663577]
[1749975943775,0.033,105440.0,105430.0,0.79885573]
[1749975943976,0.033,105440.0,105430.0,0.81663577]
[1749975944182,0.033,105440.0,105430.0,0.81663576]
[1749975944388,0.033,105440.0,105430.0,0.81663575]
[1749975944941,0.033,105440.0,105430.0,0.8166357]
[1749975945179,0.033,105440.0,105430.0,0.79885573]
[1749975945872,0.033,105440.0,105430.0,0.81663563]
[1749975946074,0.033,105440.0,105430.0,0.79885573]
[1749975946270,0.033,105440.0,105430.0,0.81663564]
[1749975946475,0.033,105440.0,105430.0,0.81663563]
[1749975946680,0.033,105440.0,105430.0,0.81663572]
[1749975947090,0.033,105440.0,105430.0,0.79885573]
[1749975947514,0.033,105440.0,105430.0,0.81665559]
[1749975947724,0.033,105440.0,105430.0,0.81665564]
[1749975947926,0.033,105440.0,105430.0,0.81665563]
[1749975948375,0.033,105440.0,105430.0,0.81665551]
[1749975949020,0.033,105440.0,105430.0,0.79885573]
[1749975949689,0.033,105440.0,105430.0,0.8166556]
[1749975950128,0.033,105440.0,105430.0,0.81665553]
[1749975950544,0.0174,105440.0,105430.0,0.81665552]
[1749975950979,0.0174,105440.0,105430.0,0.79885573]
[1749975951180,0.0174,105440.0,105430.0,0.81665545]
[1749975951651,0.0174,105440.0,105430.0,0.81665541]
[1749975951874,0.0174,105440.0,105430.0,0.79885573]
[1749975952094,0.0174,105440.0,105430.0,0.81665546]
[1749975952349,0.0174,105440.0,105430.0,0.81665551]
[1749975952570,0.0174,105440.0,105430.0,0.81665544]
[1749975952803,0.0174,105440.0,105430.0,0.8166555]
[1749975953273,0.0174,105440.0,105430.0,0.79885573]
[1749975953493,0.0174,105440.0,105430.0,0.8166554]
[1749975953698,0.0174,105440.0,105430.0,0.81665549]
[1749975953857,0.0174,105440.0,105430.0,0.8166554]
[1749975954259,0.0174,105440.0,105430.0,1.26229206]
[1749975954461,0.0174,105440.0,105430.0,1.2444924]
[1749975954709,0.0174,105440.0,105430.0,1.26229216]
[1749975954900,0.0174,105440.0,105430.0,1.26228716]
[1749975955482,0.0174,105440.0,105430.0,1.2444924]
[1749975955686,0.002,105440.0,105430.0,1.32524339]
[1749975956056,0.002,105440.0,105430.0,1.32524257]
[1749975956264,0.002,105440.0,105430.0,1.32524255]
[1749975956898,0.002,105440.0,105430.0,1.32524239]
[1749975957326,0.002,105440.0,105430.0,1.32524232]
[1749975957529,0.002,105440.0,105430.0,1.3252424]
[1749975957736,0.002,105440.0,105430.0,1.30744867]
[1749975957952,0.002,105440.0,105430.0,1.34134205]
[1749975958149,0.002,105440.0,105430.0,1.3413423]
[1749975958370,0.002,105440.0,105430.0,1.29408603]
[1749975958575,0.002,105440.0,105430.0,1.2762924]
[1749975959198,0.002,105440.0,105430.0,1.29408616]
[1749975959673,0.002,105440.0,105430.0,1.29408621]
[1749975959883,0.002,105440.0,105430.0,1.2762924]
[1749975960089,0.002,105440.0,105430.0,1.29408621]
[1749975960563,0.002,105440.0,105430.0,1.34064162]
[1749975960762,0.002,105440.0,105430.0,1.37503543]
[1749975961188,0.3495733,105450.0,105440.0,0.22089065]
[1749975961407,0.3495733,105450.0,105440.0,0.93448266]
[1749975961829,0.3495733,105450.0,105440.0,0.91668908]
[1749975962052,0.3495733,105450.0,105440.0,0.47105241]
[1749975962259,0.3495733,105450.0,105440.0,0.51964639]
[1749975962467,0.3654733,105450.0,105440.0,0.51964639]
[1749975962708,0.3684733,105450.0,105440.0,0.52064639]
[1749975962848,0.3684733,105450.0,105440.0,0.53843981]
[1749975963060,0.3684733,105450.0,105440.0,0.53843997]
[1749975963266,0.3684733,105450.0,105440.0,0.52064639]
[1749975963441,0.3684733,105450.0,105440.0,0.55623383]
[1749975963841,0.3684733,105450.0,105440.0,0.55623382]
[1749975964301,0.3684733,105450.0,105440.0,0.55623383]
[1749975964539,0.3684733,105450.0,105440.0,0.55623382]
[1749975964753,0.3684733,105450.0,105440.0,0.53844011]
[1749975965041,0.3684733,105450.0,105440.0,0.55623384]
[1749975965262,0.0284733,105450.0,105440.0,0.55623367]
[1749975965486,0.3684733,105450.0,105440.0,0.55623367]
[1749975965708,0.3684733,105450.0,105440.0,0.53844011]
[1749975965926,0.3684733,105450.0,105440.0,0.55623385]
[1749975966150,0.3684733,105450.0,105440.0,0.53844011]
[1749975966352,0.3684733,105450.0,105440.0,0.55623383]
[1749975966569,0.3684733,105450.0,105440.0,0.55623879]
[1749975967021,0.3684733,105450.0,105440.0,0.53844011]
[1749975967253,0.3684733,105450.0,105440.0,0.55623861]
[1749975967813,0.3684733,105450.0,105440.0,0.55623879]
[1749975968048,0.3684733,105450.0,105440.0,0.55623877]
[1749975968233,0.3684733,105450.0,105440.0,0.50764474]
[1749975968440,0.3684733,105450.0,105440.0,0.50764477]
[1749975968650,0.343,105450.0,105440.0,0.50764477]
[1749975968865,0.343,105450.0,105440.0,0.50764468]
[1749975969062,0.343,105450.0,105440.0,0.50764461]
[1749975969523,0.003,105450.0,105440.0,0.60379384]
[1749975969721,0.343,105450.0,105440.0,1.04943052]
[1749975969959,0.343,105450.0,105440.0,1.03163202]
[1749975970103,0.343,105450.0,105440.0,1.04943021]
[1749975970457,0.343,105450.0,105440.0,1.0494303]
[1749975970784,0.35269359,105450.0,105440.0,1.04943044]
[1749975970984,0.36829359,105450.0,105440.0,1.04943045]
[1749975971189,0.0186,105450.0,105440.0,1.04943045]
[1749975971391,0.343,105450.0,105440.0,1.03163202]
[1749975971602,0.343,105450.0,105440.0,1.04943044]
[1749975972232,0.343,105450.0,105440.0,1.07119202]
[1749975972440,0.343,105450.0,105440.0,0.62555535]
[1749975972650,0.343,105450.0,105440.0,0.64335378]
[1749975972855,0.343,105450.0,105440.0,0.62555535]
[1749975973059,0.343,105450.0,105440.0,0.64335378]
[1749975974932,0.343,105450.0,105440.0,0.62555535]
[1749975975144,0.3587,105450.0,105440.0,0.64335378]
[1749975975371,0.3587,105450.0,105440.0,0.62555535]
[1749975975580,0.0187,105450.0,105440.0,0.62555535]
[1749975975793,0.343,105450.0,105440.0,0.62555535]
[1749975975998,0.343,105450.0,105440.0,0.64335377]
[1749975976425,0.35256329,105450.0,105440.0,0.64335378]
[1749975976891,0.35256329,105450.0,105440.0,0.62555535]
[1749975977108,0.35256329,105450.0,105440.0,0.82056457]
[1749975978672,0.35256329,105450.0,105440.0,0.82054292]
[1749975979138,0.35256329,105450.0,105440.0,0.80276613]
[1749975979348,0.01256329,105450.0,105440.0,0.82054291]
[1749975979558,0.343,105450.0,105440.0,0.80276613]
[1749975979713,0.343,105450.0,105440.0,0.84084305]
[1749975979924,0.343,105450.0,105440.0,0.82306627]
[1749975980523,0.343,105450.0,105440.0,0.84084305]
[1749975981120,0.352532,105450.0,105440.0,0.82306627]
[1749975981319,0.352532,105450.0,105440.0,0.84084305]
[1749975981544,0.352532,105450.0,105440.0,0.82306627]
[1749975981745,0.352532,105450.0,105440.0,0.80276613]
[1749975982479,0.352532,105450.0,105440.0,0.82054291]
[1749975982905,0.352532,105450.0,105440.0,0.80276613]
[1749975983797,0.352532,105450.0,105440.0,0.82054291]
[1749975984070,0.352532,105450.0,105440.0,0.80276613]
[1749975985196,0.352532,105450.0,105440.0,0.82056456]
[1749975985603,0.352532,105450.0,105440.0,0.80276613]
[1749975985810,0.352532,105450.0,105440.0,0.82056456]
[1749975986024,0.352532,105450.0,105440.0,0.82056455]
[1749975986237,0.352532,105450.0,105440.0,0.80276613]
[1749975986456,0.352532,105450.0,105440.0,0.82056456]
[1749975986666,0.352532,105450.0,105440.0,0.80276613]
[1749975987241,0.352532,105450.0,105440.0,0.82056455]
[1749975988023,0.79816867,105450.0,105440.0,0.80276613]
[1749975988229,0.79816867,105450.0,105440.0,0.82056455]
[1749975989319,0.79816867,105450.0,105440.0,0.80276613]
[1749975989522,0.79816867,105450.0,105440.0,0.82056455]
[1749975990992,0.81326867,105450.0,105440.0,0.82056455]
[1749975991386,0.81326867,105450.0,105440.0,0.82056497]
[1749975991619,0.83775111,105450.0,105440.0,0.62708497]
[1749975991819,0.382632,105450.0,105440.0,0.82052497]
[1749975992026,0.82826867,105450.0,105440.0,0.82052576]
[1749975992231,0.83775102,105450.0,105440.0,0.82052577]
[1749975992436,0.83775102,105450.0,105440.0,0.80272613]
[1749975992634,0.83775102,105450.0,105440.0,0.82052562]
[1749975992856,0.82826867,105450.0,105440.0,0.66664583]
[1749975993054,0.82826867,105450.0,105440.0,0.82052578]
[1749975993315,0.82826867,105450.0,105440.0,0.80272613]
[1749975993510,0.82826867,105450.0,105440.0,0.82052576]
[1749975993751,0.82826867,105450.0,105440.0,0.82052575]
[1749975993955,0.82826867,105450.0,105440.0,0.82052574]
[1749975994159,0.82826867,105450.0,105440.0,0.80272613]
[1749975994614,0.82826867,105450.0,105440.0,0.82052567]
[1749975994810,0.83775111,105450.0,105440.0,0.80272613]
[1749975995010,0.82826867,105450.0,105440.0,0.80272613]
[1749975995436,0.82826867,105450.0,105440.0,0.82052571]
[1749975995633,0.82826867,105450.0,105440.0,0.83502638]
[1749975995879,0.82826867,105450.0,105440.0,0.85282617]
[1749975996323,0.82826867,105450.0,105440.0,0.85282604]
[1749975996528,0.82826867,105450.0,105440.0,0.8528261]
[1749975996797,0.83775111,105450.0,105440.0,0.83502657]
[1749975997015,0.83775102,105450.0,105440.0,0.83502657]
[1749975997441,0.83775102,105450.0,105440.0,0.85282629]
[1749975997652,0.82826867,105450.0,105440.0,0.85282632]
[1749975997867,0.82826867,105450.0,105440.0,0.83502657]
[1749975998088,0.82826867,105450.0,105440.0,0.85280528]
[1749975998537,0.82826867,105450.0,105440.0,0.85280524]
[1749975999011,0.382632,105450.0,105440.0,0.83502657]
[1749975999244,0.82826867,105450.0,105440.0,0.83502657]
[1749975999480,0.82826867,105450.0,105440.0,0.85280522]
[1749975999714,0.82826867,105450.0,105440.0,0.85280523]
[1749975999947,0.82826867,105450.0,105440.0,0.57944524]
[1749976000180,0.83775102,105450.0,105440.0,0.57944524]
[1749976000386,0.82826867,105450.0,105440.0,0.57944517]
[1749976000592,0.83775102,105450.0,105440.0,0.36826657]
[1749976000802,0.82826867,105450.0,105440.0,0.57944525]
[1749976001002,0.82826867,105450.0,105440.0,0.57944527]
[1749976001204,0.82826867,105450.0,105440.0,0.57944522]
[1749976001408,0.82826867,105450.0,105440.0,0.56166657]
[1749976001562,0.82826867,105450.0,105440.0,0.57944522]
[1749976001769,0.82826867,105450.0,105440.0,0.57944526]
[1749976002110,0.82826867,105450.0,105440.0,0.57944525]
[1749976002111,0.83775102,105450.0,105440.0,0.57944525]
[1749976002719,0.82826867,105450.0,105440.0,0.57944529]
[1749976002922,0.82826867,105450.0,105440.0,0.57944527]
[1749976003189,0.82826867,105450.0,105440.0,0.57944514]
[1749976003388,0.82826867,105450.0,105440.0,0.57944521]
[1749976003802,0.82826867,105450.0,105440.0,0.56166657]
[1749976004006,0.82826867,105450.0,105440.0,0.57944522]
[1749976004209,0.83775102,105450.0,105440.0,0.56166657]
[1749976004426,0.83775102,105450.0,105440.0,0.57944524]
[1749976004612,0.82826867,105450.0,105440.0,0.57944524]
[1749976004829,0.82826867,105450.0,105440.0,0.56166657]
[1749976005036,0.82826867,105450.0,105440.0,0.57944525]
[1749976005177,0.82826867,105450.0,105440.0,0.57944528]
[1749976005380,0.39211435,105450.0,105440.0,0.56166657]
[1749976005608,0.82826867,105450.0,105440.0,0.57944525]
[1749976005758,0.82826867,105450.0,105440.0,0.56166657]
[1749976005963,0.82826867,105450.0,105440.0,0.57944524]
[1749976006186,0.82826867,105450.0,105440.0,0.56166657]
[1749976006604,0.82826867,105450.0,105440.0,0.57944522]
[1749976007923,0.82826867,105450.0,105440.0,0.57944521]
[1749976008125,0.82826867,105450.0,105440.0,0.5794452]
[1749976008263,0.82826867,105450.0,105440.0,0.56166657]
[1749976008728,0.82826867,105450.0,105440.0,0.57946622]
[1749976009242,0.82826867,105450.0,105440.0,0.57946626]
[1749976009479,0.82826867,105450.0,105440.0,0.57946625]
[1749976009671,0.82826867,105450.0,105440.0,0.57946613]
[1749976009901,0.83775102,105450.0,105440.0,0.57946624]
[1749976010121,0.82826867,105450.0,105440.0,0.56166657]
[1749976010348,0.82826867,105450.0,105440.0,0.57946627]
[1749976010611,0.82826867,105450.0,105440.0,0.57946623]
[1749976010841,0.82826867,105450.0,105440.0,0.57946624]
[1749976011062,0.82826867,105450.0,105440.0,0.57946623]
[1749976011349,0.82826867,105450.0,105440.0,0.56166657]
[1749976011503,0.82826867,105450.0,105440.0,0.57946624]
[1749976011710,0.83775102,105450.0,105440.0,0.57946624]
[1749976011920,0.82826867,105450.0,105440.0,0.57946624]
[1749976012119,0.82826867,105450.0,105440.0,0.57946625]
[1749976012318,0.83775102,105450.0,105440.0,0.56166657]
[1749976012518,0.83775102,105450.0,105440.0,0.57946626]
[1749976012946,0.83775102,105450.0,105440.0,0.56166657]
[1749976013298,0.83775102,105450.0,105440.0,0.57946501]
[1749976013634,0.82826867,105450.0,105440.0,0.57946501]
[1749976013867,0.82826867,105450.0,105440.0,0.56166657]
[1749976014105,0.83775111,105450.0,105440.0,0.579465]
[1749976014301,0.82826867,105450.0,105440.0,0.579465]
[1749976014529,0.82826867,105450.0,105440.0,0.57946501]
[1749976014736,0.82826867,105450.0,105440.0,0.56166657]
[1749976014944,0.82826867,105450.0,105440.0,0.57946501]
[1749976015356,0.82826867,105450.0,105440.0,0.56166657]
[1749976015573,0.82826867,105450.0,105440.0,0.57946507]
[1749976015811,0.82826867,105450.0,105440.0,0.56166657]
[1749976016018,0.82826867,105450.0,105440.0,0.57946508]
[1749976016231,0.8377512,105450.0,105440.0,0.56166657]
[1749976016444,0.3559,105420.0,105410.0,0.21090244]
[1749976016659,1.28204353,105420.0,105410.0,0.36567673]
[1749976016870,1.30101426,105420.0,105410.0,0.5100306]
[1749976017093,1.50517677,105420.0,105410.0,0.51951691]
[1749976017306,1.50517677,105420.0,105410.0,0.10792483]
[1749976017525,1.4767209,105420.0,105410.0,0.51003339]
[1749976017949,1.4797209,105420.0,105410.0,0.52051979]
[1749976018152,1.4797209,105420.0,105410.0,0.3366061]
[1749976018390,1.4797209,105420.0,105410.0,0.5300061]
[1749976018825,1.4767209,105420.0,105410.0,0.5290061]
[1749976019039,1.4797209,105420.0,105410.0,0.5300061]
[1749976019572,1.4797209,105420.0,105410.0,0.52051979]
[1749976019782,0.58844756,105420.0,105410.0,0.5300061]
[1749976019997,1.4797209,105420.0,105410.0,0.5300061]
[1749976020508,1.4797209,105420.0,105410.0,0.52051979]
[1749976023403,1.4797209,105420.0,105410.0,0.36667979]
[1749976023610,1.4797209,105420.0,105410.0,0.52055979]
[1749976024557,1.29948881,105420.0,105410.0,0.53004601]
[1749976024766,0.39872916,105420.0,105410.0,0.53953214]
[1749976024967,0.40821475,105420.0,105410.0,0.53953214]
[1749976025186,1.29948809,105420.0,105410.0,0.53953214]
[1749976027337,1.30897377,105420.0,105410.0,0.53953214]
[1749976027978,1.29948809,105420.0,105410.0,0.53953214]
[1749976028755,1.30897377,105420.0,105410.0,0.53953214]
[1749976029019,1.29948809,105420.0,105410.0,0.53953214]
[1749976032097,1.30897377,105420.0,105410.0,0.53953214]
[1749976032399,1.29948809,105420.0,105410.0,0.53953214]
[1749976039782,1.30897377,105420.0,105410.0,0.53953214]
[1749976041477,1.30897377,105420.0,105410.0,0.53949214]
[1749976049546,1.30897377,105420.0,105410.0,0.34609214]
[1749976049727,1.30897377,105420.0,105410.0,0.53949214]
[1749976050151,1.31845963,105420.0,105410.0,0.53949214]
[1749976050997,1.30897377,105420.0,105410.0,0.53949214]
[1749976052832,1.48920604,105420.0,105410.0,0.31763357]
[1749976053053,1.4929572,105420.0,105410.0,0.10892483]
[1749976053292,1.4929572,105420.0,105410.0,0.30228483]
[1749976053517,1.5214722,105420.0,105410.0,0.01268307]
[1749976053736,1.5214722,105420.0,105410.0,0.20604307]
[1749976054577,1.5214722,105420.0,105410.0,0.01268307]
[1749976054797,1.5214722,105420.0,105410.0,0.20604307]
[1749976057514,1.5214722,105420.0,105410.0,0.05220307]
[1749976057731,1.5214722,105420.0,105410.0,0.20604307]
[1749976057955,1.54574251,105420.0,105410.0,0.20604307]
[1749976058177,1.5214722,105420.0,105410.0,0.20604307]
[1749976064038,1.5214722,105420.0,105410.0,0.01268307]
[1749976064251,1.5214722,105420.0,105410.0,0.20604307]
[1749976064909,1.5214722,105420.0,105410.0,0.22385069]
[1749976065135,1.5214722,105420.0,105410.0,0.20604307]
[1749976065360,1.5214722,105420.0,105410.0,0.22385069]
[1749976067315,1.5214722,105420.0,105410.0,0.05220307]
[1749976068052,1.5214722,105420.0,105410.0,0.07001069]
[1749976068470,1.5214722,105420.0,105410.0,0.05220307]
[1749976068684,1.5214722,105420.0,105410.0,0.03049069]
[1749976068906,1.5214722,105420.0,105410.0,0.07001069]
[1749976069829,1.5214722,105420.0,105410.0,0.05220307]
[1749976070899,1.5214722,105420.0,105410.0,0.07001069]
[1749976071537,0.63019886,105420.0,105410.0,0.07001069]
[1749976071804,1.5214722,105420.0,105410.0,0.07001068]
[1749976072019,1.5214722,105420.0,105410.0,0.05220307]
[1749976072239,1.5214722,105420.0,105410.0,0.07001068]
[1749976073352,1.5214722,105420.0,105410.0,0.05220307]
[1749976073571,1.5214722,105420.0,105410.0,0.07001057]
[1749976073785,1.5214722,105420.0,105410.0,0.26923255]
[1749976073997,1.5214722,105420.0,105410.0,0.25142505]
[1749976074212,1.5214722,105420.0,105410.0,0.26923159]
[1749976074429,1.5214722,105420.0,105410.0,0.25142505]
[1749976074878,1.5214722,105420.0,105410.0,0.26923161]
[1749976075081,1.5214722,105420.0,105410.0,0.25142505]
[1749976075502,1.5214722,105420.0,105410.0,0.26923161]
[1749976075727,1.54574251,105420.0,105410.0,0.26923161]
[1749976075941,1.5214722,105420.0,105410.0,0.26923161]
[1749976076836,1.31585488,105420.0,105410.0,0.28820414]